fUST/lending_fUST_20240225
["ID","MTS","AMOUNT","RATE_DAILY","PERIOD"]
[315126345,1708865447482,-500.0,0.00019178,2]
[315126347,1708865447491,-500.0,0.00019178,2]
[315126348,1708865447500,-500.0,0.00019178,2]
[315126350,1708865447509,-500.0,0.00019178,2]
[315126352,1708865447519,-319.09963093,0.00019178,2]
[315126354,1708865447528,-698.13,0.00019178,2]
[315126356,1708865447537,-500.0,0.00019178,2]
[315126358,1708865447547,-500.0,0.00019178,2]
[315126360,1708865447556,-649.66,0.00019178,2]
[315126362,1708865447565,-500.0,0.00019178,2]
[315126364,1708865447575,-500.0,0.00019178,2]
[315126366,1708865447585,-944.61,0.00019178,2]
[315126368,1708865447594,-500.0,0.00019178,2]
[315126370,1708865447604,-500.0,0.00019178,2]
[315126372,1708865447613,-500.0,0.00019178,2]
[315126374,1708865447622,-544.22,0.00019178,2]
[315126376,1708865447631,-502.01980566,0.00019178,2]
[315126379,1708865447641,-791.5,0.00019178,2]
[315126380,1708865447650,-500.0,0.00019178,2]
[315126383,1708865447660,-6648.34,0.00019178,2]
[315126385,1708865447670,-500.0,0.00019178,2]
[315126386,1708865447679,-500.0,0.00019178,2]
[315126389,1708865447689,-500.0,0.00019178,2]
[315126391,1708865447698,-500.0,0.00019178,2]
[315126393,1708865447708,-822.83,0.00019178,2]
[315126395,1708865447717,-2216.94,0.00019178,2]
[315126397,1708865447726,-500.0,0.00019178,2]
[315126399,1708865447738,-846.91,0.00019178,2]
[315126401,1708865447747,-3735.4,0.00019178,2]
[315126403,1708865447757,-500.0,0.00019178,2]
[315126405,1708865447766,-5067.9,0.00019178,2]
[315126407,1708865447775,-500.0,0.00019178,2]
[315126408,1708865447784,-500.0,0.00019178,2]
[315126411,1708865447794,-988.56,0.00019178,2]
[315126413,1708865447803,-500.0,0.00019178,2]
[315126415,1708865447813,-175.712946,0.00019178,2]
[315126416,1708865447822,-166.666666,0.00019178,2]
[315126419,1708865447832,-500.0,0.0001925,2]
[315126421,1708865447841,-200.5569553,0.000193,2]
[315126423,1708865447850,-205.466,0.00019307,2]
[315126425,1708865447859,-161.70669459,0.00019352,2]
[315126427,1708865447869,-3000.0,0.0001936,2]
[315126428,1708865447878,-153.0,0.000194,2]
[315126430,1708865447887,-153.0,0.000194,2]
[315126433,1708865447897,-22118.85,0.00019412,3]
[315126435,1708865447906,-500.0,0.00019441,2]
[315126436,1708865447915,-500.0,0.00019441,2]
[315126438,1708865447924,-500.0,0.00019441,2]
[315126441,1708865447934,-319.09963093,0.00019441,2]
[315126443,1708865447943,-500.0,0.00019441,2]
[315126444,1708865447952,-1130.2,0.00019441,2]
[315126447,1708865447961,-500.0,0.00019451,2]
[315126448,1708865447971,-500.0,0.00019451,2]
[315126451,1708865447980,-500.0,0.00019451,2]
[315126452,1708865447989,-500.0,0.00019452,2]
[315126455,1708865447999,-500.0,0.00019452,2]
[315126457,1708865448008,-776.03,0.00019452,2]
[315126459,1708865448018,-500.0,0.00019452,2]
[315126461,1708865448027,-500.0,0.00019452,2]
[315126463,1708865448036,-500.0,0.00019452,2]
[315126464,1708865448047,-500.0,0.00019452,2]
[315126466,1708865448056,-431.41984479,0.00019452,2]
[315132342,1708865648281,678.42863304,0.000125,2]
[315132346,1708865687446,1190.16257715,0.000125,2]
[315132347,1708865702805,793.4417181,0.000125,2]
[315132348,1708865718803,661.20143175,0.000125,2]
[315132369,1708866260566,238.966412,0.00018014,2]
[315132372,1708866347976,169.08164971,0.00018052,2]
[315132373,1708866379506,24900.0,0.00017827,2]
[315132380,1708866595933,1239.3188003,0.00017827,2]
[315132385,1708866634329,-1878.64735971,0.0001814,2]
[315132386,1708866634340,-344.48594594,0.00018151,2]
[315132387,1708866634350,-405.7475759,0.000189,2]
[315132388,1708866634359,-171.522298,0.00019078,2]
[315132389,1708866634369,-53172.33586511,0.00019177,2]
[315132390,1708866634378,-435.66704225,0.00019178,2]
[315132391,1708866634387,-500.0,0.00019178,2]
[315132392,1708866634397,-500.0,0.00019178,2]
[315132393,1708866634406,-500.0,0.00019178,2]
[315132394,1708866634416,-500.0,0.00019178,2]
[315132395,1708866634427,-500.0,0.00019178,2]
[315132396,1708866634437,-500.0,0.00019178,2]
[315132397,1708866634446,-500.0,0.00019178,2]
[315132398,1708866634456,-632.34476387,0.00019178,2]
[315132399,1708866634465,-500.0,0.00019178,2]
[315132400,1708866634476,-705.16,0.00019178,2]
[315132401,1708866634486,-500.0,0.00019178,2]
[315132402,1708866634495,-500.0,0.00019178,2]
[315132403,1708866634506,-500.0,0.00019178,2]
[315132404,1708866634515,-500.0,0.00019178,2]
[315132405,1708866634525,-319.09963093,0.00019178,2]
[315132406,1708866634534,-500.0,0.00019178,2]
[315132407,1708866634544,-500.0,0.00019178,2]
[315132408,1708866634554,-500.0,0.00019178,2]
[315132409,1708866634563,-500.0,0.00019178,2]
[315132410,1708866634573,-500.0,0.00019178,2]
[315132411,1708866634582,-500.0,0.00019178,2]
[315132412,1708866634592,-500.0,0.00019178,2]
[315132413,1708866634601,-500.0,0.00019178,2]
[315132414,1708866634611,-500.0,0.00019178,2]
[315132415,1708866634620,-500.0,0.00019178,2]
[315132416,1708866634629,-500.0,0.00019178,2]
[315132417,1708866634639,-1136.88,0.00019178,2]
[315132418,1708866634648,-500.0,0.00019178,2]
[315132419,1708866634658,-500.0,0.00019178,2]
[315132420,1708866634667,-500.0,0.00019178,2]
[315132421,1708866634676,-500.0,0.00019178,2]
[315132422,1708866634686,-500.0,0.00019178,2]
[315132423,1708866634695,-500.0,0.00019178,2]
[315132424,1708866634705,-500.0,0.00019178,2]
[315132425,1708866634714,-500.0,0.00019178,2]
[315132426,1708866634724,-500.0,0.00019178,2]
[315132428,1708866634734,-500.0,0.00019178,2]
[315132430,1708866634743,-501.06312451,0.00019178,2]
[315132432,1708866634754,-500.0,0.00019178,2]
[315132434,1708866634763,-500.0,0.00019178,2]
[315132436,1708866634773,-500.0,0.00019178,2]
[315132438,1708866634782,-1872.72,0.00019178,2]
[315132440,1708866634791,-806.18,0.00019178,2]
[315132442,1708866634801,-500.0,0.00019178,2]
[315132444,1708866634813,-500.0,0.00019178,2]
[315132446,1708866634823,-724.84,0.00019178,2]
[315132448,1708866634832,-1745.15,0.00019178,2]
[315132450,1708866634841,-500.0,0.00019178,2]
[315132452,1708866634851,-500.0,0.00019178,2]
[315132454,1708866634861,-500.0,0.00019178,2]
[315132456,1708866634870,-500.0,0.00019178,2]
[315132458,1708866634880,-500.0,0.00019178,2]
[315132460,1708866634890,-500.0,0.00019178,2]
[315132462,1708866634900,-500.0,0.00019178,2]
[315132464,1708866634910,-500.0,0.00019178,2]
[315132466,1708866634919,-500.0,0.00019178,2]
[315132468,1708866634928,-319.09963093,0.00019178,2]
[315132470,1708866634938,-615.54,0.00019178,2]
[315132472,1708866634948,-500.0,0.00019178,2]
[315132474,1708866634957,-500.0,0.00019178,2]
[315132476,1708866634966,-1046.41,0.00019178,2]
[315132478,1708866634976,-500.0,0.00019178,2]
[315132480,1708866634985,-500.0,0.00019178,2]
[315132482,1708866634994,-500.0,0.00019178,2]
[315132484,1708866635004,-500.0,0.00019178,2]
[315132486,1708866635015,-500.0,0.00019178,2]
[315132488,1708866635024,-946.55,0.00019178,2]
[315132490,1708866635033,-500.0,0.00019178,2]
[315132492,1708866635042,-500.0,0.00019178,2]
[315132494,1708866635051,-749.35,0.00019178,2]
[315132496,1708866635060,-500.0,0.00019178,2]
[315132498,1708866635069,-500.0,0.00019178,2]
[315132500,1708866635078,-500.0,0.00019178,2]
[315132502,1708866635088,-500.0,0.00019178,2]
[315132504,1708866635098,-848.1,0.00019178,2]
[315132506,1708866635107,-689.93,0.00019178,2]
[315132508,1708866635118,-500.0,0.00019178,2]
[315132510,1708866635127,-500.0,0.00019178,2]
[315132512,1708866635137,-500.0,0.00019178,2]
[315132514,1708866635146,-500.0,0.00019178,2]
[315132516,1708866635155,-3798.72,0.00019178,2]
[315132517,1708866635164,-500.0,0.00019178,2]
[315132519,1708866635174,-6738.02,0.00019178,2]
[315132521,1708866635183,-4856.74,0.00019178,2]
[315132523,1708866635192,-500.0,0.00019178,2]
[315132525,1708866635201,-500.0,0.00019178,2]
[315132527,1708866635211,-816.92,0.00019178,2]
[315132529,1708866635220,-500.0,0.00019178,2]
[315132531,1708866635229,-1351.55,0.00019178,2]
[315132533,1708866635239,-500.0,0.00019178,2]
[315132535,1708866635248,-500.0,0.00019178,2]
[315132537,1708866635258,-500.0,0.00019178,2]
[315132539,1708866635267,-2221.18,0.00019178,2]
[315132541,1708866635277,-500.0,0.00019178,2]
[315132544,1708866635286,-500.0,0.00019178,2]
[315132546,1708866635296,-500.0,0.00019178,2]
[315132547,1708866635305,-1002.02,0.00019178,2]
[315132550,1708866635315,-500.0,0.00019178,2]
[315132551,1708866635324,-500.0,0.00019178,2]
[315132554,1708866635333,-500.0,0.00019178,2]
[315132555,1708866635342,-12472.3,0.00019178,2]
[315132557,1708866635351,-500.0,0.00019178,2]
[315132559,1708866635360,-317.34565024,0.00019178,2]
[315132561,1708866635369,-407.91000806,0.00019178,2]
[315132855,1708866638341,-300.11280488,0.00018139,2]
[315132857,1708866638351,-867.48999194,0.00019178,2]
[315132859,1708866638363,-500.0,0.00019178,2]
[315132861,1708866638372,-500.0,0.00019178,2]
[315132863,1708866638382,-500.0,0.00019178,2]
[315132865,1708866638391,-1467.39,0.00019178,2]
[315132867,1708866638401,-500.0,0.00019178,2]
[315132869,1708866638410,-1290.34,0.00019178,2]
[315132871,1708866638419,-1966.94,0.00019178,2]
[315132873,1708866638429,-1143.01,0.00019178,2]
[315132875,1708866638442,-878.17,0.00019178,2]
[315132877,1708866638452,-304.00281648,0.00019178,2]
[315133198,1708866641636,-195.99718352,0.00019178,2]
[315133200,1708866641645,-419.38061073,0.00019178,2]
[315133202,1708866641655,-500.0,0.00019178,2]
[315133205,1708866641664,-500.0,0.00019178,2]
[315133206,1708866641674,-500.0,0.00019178,2]
[315133208,1708866641683,-500.0,0.00019178,2]
[315133210,1708866641692,-500.0,0.00019178,2]
[315133212,1708866641702,-500.0,0.00019178,2]
[315133215,1708866641712,-319.09963093,0.00019178,2]
[315133218,1708866641721,-500.0,0.00019178,2]
[315133221,1708866641731,-500.0,0.00019178,2]
[315133224,1708866641740,-500.0,0.00019178,2]
[315133227,1708866641749,-1402.39,0.00019178,2]
[315133230,1708866641758,-500.0,0.00019178,2]
[315133232,1708866641768,-1302.86,0.00019178,2]
[315133235,1708866641777,-500.0,0.00019178,2]
[315133238,1708866641786,-500.0,0.00019178,2]
[315133240,1708866641795,-500.0,0.00019178,2]
[315133241,1708866641805,-500.0,0.00019178,2]
[315133245,1708866641815,-500.0,0.00019178,2]
[315133247,1708866641824,-500.0,0.00019178,2]
[315133249,1708866641834,-500.0,0.00019178,2]
[315133251,1708866641843,-11359.92,0.00019178,2]
[315133252,1708866641852,-558.62,0.00019178,2]
[315133254,1708866641862,-500.0,0.00019178,2]
[315133256,1708866641871,-500.0,0.00019178,2]
[315133258,1708866641880,-500.0,0.00019178,2]
[315133260,1708866641890,-500.0,0.00019178,2]
[315133273,1708866641998,-500.0,0.00019178,2]
[315133275,1708866642011,-694.63465149,0.00019178,2]
[315133277,1708866642021,-173.609294,0.00019178,2]
[315133279,1708866642031,-161.435405,0.00019178,2]
[315133281,1708866642040,-175.712946,0.00019178,2]
[315133283,1708866642049,-166.666666,0.00019178,2]
[315133285,1708866642059,-637.38395958,0.00019299,2]
[315133287,1708866642068,-300.0,0.00019359,2]
[315133289,1708866642078,-385.7549351,0.000194,2]
[315133291,1708866642087,-200.5569553,0.000194,2]
[315133293,1708866642096,-153.0,0.000194,2]
[315133295,1708866642105,-153.0,0.000194,2]
[315133297,1708866642114,-153.0,0.000194,2]
[315133299,1708866642123,-200.5569553,0.000194,2]
[315133301,1708866642132,-240.2863309,0.000194,2]
[315133303,1708866642141,-400.9721176,0.000194,2]
[315133305,1708866642152,-153.0,0.000194,2]
[315133307,1708866642161,-153.0,0.000194,2]
[315133309,1708866642170,-500.0,0.00019451,2]
[315133311,1708866642179,-500.0,0.00019451,2]
[315133313,1708866642188,-500.0,0.00019451,2]
[315133315,1708866642197,-319.09963093,0.00019451,2]
[315133317,1708866642207,-500.0,0.00019451,2]
[315133319,1708866642216,-439.89633118,0.00019451,2]
[315133321,1708866642225,-500.0,0.00019452,2]
[315133323,1708866642234,-500.0,0.00019452,2]
[315133325,1708866642244,-500.0,0.00019452,2]
[315133326,1708866642253,-500.0,0.00019452,2]
[315133327,1708866642262,-500.0,0.00019452,2]
[315133328,1708866642271,-500.0,0.00019452,2]
[315133329,1708866642280,-705.16,0.00019452,2]
[315133330,1708866642289,-151.0,0.00019452,2]
[315133331,1708866642298,-151.0,0.00019452,2]
[315133332,1708866642309,-500.0,0.00019452,2]
[315133333,1708866642318,-475.9849183,0.00019452,2]
[315133334,1708866642327,-187.33386723,0.00019452,2]
[315133335,1708866642336,-500.0,0.00019452,2]
[315133336,1708866642345,-500.0,0.00019452,2]
[315133337,1708866642354,-500.0,0.00019452,2]
[315133338,1708866642363,-500.0,0.00019452,2]
[315133339,1708866642372,-500.0,0.00019452,2]
[315133340,1708866642381,-1136.88,0.00019452,2]
[315133341,1708866642390,-500.0,0.00019452,2]
[315133342,1708866642399,-500.0,0.00019452,2]
[315133343,1708866642408,-500.0,0.00019452,2]
[315133344,1708866642417,-500.0,0.00019452,2]
[315133345,1708866642427,-500.0,0.00019452,2]
[315133346,1708866642442,-500.0,0.00019452,2]
[315133347,1708866642451,-500.0,0.00019452,2]
[315133348,1708866642460,-500.0,0.00019452,2]
[315133349,1708866642470,-1872.72,0.00019452,2]
[315133350,1708866642479,-806.18,0.00019452,2]
[315133351,1708866642489,-500.0,0.00019452,2]
[315133352,1708866642498,-198.15797219,0.00019452,2]
[315133467,1708866646445,-301.84202781,0.00019452,2]
[315133469,1708866646455,-724.84,0.00019452,2]
[315133471,1708866646464,-1745.15,0.00019452,2]
[315133473,1708866646473,-500.0,0.00019452,2]
[315133475,1708866646482,-500.0,0.00019452,2]
[315133477,1708866646491,-172.61213934,0.00019452,2]
[315133479,1708866646500,-500.0,0.00019452,2]
[315133481,1708866646510,-500.0,0.00019452,2]
[315133483,1708866646519,-151.0,0.00019452,2]
[315133484,1708866646528,-151.0,0.00019452,2]
[315133486,1708866646537,-151.0,0.00019452,2]
[315133489,1708866646547,-500.0,0.00019452,2]
[315133491,1708866646556,-500.0,0.00019452,2]
[315133492,1708866646565,-1046.41,0.00019452,2]
[315133495,1708866646574,-500.0,0.00019452,2]
[315133497,1708866646584,-500.0,0.00019452,2]
[315133499,1708866646592,-500.0,0.00019452,2]
[315133501,1708866646602,-500.0,0.00019452,2]
[315133503,1708866646611,-946.55,0.00019452,2]
[315133505,1708866646621,-500.0,0.00019452,2]
[315133507,1708866646629,-749.35,0.00019452,2]
[315133508,1708866646638,-500.0,0.00019452,2]
[315133511,1708866646647,-500.0,0.00019452,2]
[315133513,1708866646656,-500.0,0.00019452,2]
[315133514,1708866646666,-848.1,0.00019452,2]
[315133516,1708866646675,-689.93,0.00019452,2]
[315133519,1708866646684,-500.0,0.00019452,2]
[315133520,1708866646693,-500.0,0.00019452,2]
[315133523,1708866646702,-500.0,0.00019452,2]
[315133525,1708866646712,-3798.72,0.00019452,2]
[315133527,1708866646722,-500.0,0.00019452,2]
[315133529,1708866646731,-6738.02,0.00019452,2]
[315133531,1708866646739,-4856.74,0.00019452,2]
[315133533,1708866646749,-500.0,0.00019452,2]
[315133534,1708866646758,-500.0,0.00019452,2]
[315133536,1708866646767,-816.92,0.00019452,2]
[315133538,1708866646777,-1190.34502312,0.00019452,2]
[315133541,1708866646788,-161.20497688,0.00019452,2]
[315133543,1708866646797,-143.13502312,0.00019452,2]
[315133653,1708866849216,15554.970144,0.00017972,2]
[315133685,1708867779895,267.416678,0.00017992,2]
[315133720,1708867832677,-166.72933605,0.00018356,2]
[315133722,1708867832686,-504.0715383,0.00018356,2]
[315133726,1708867832708,-954.16423242,0.00018356,2]
[315133788,1708867841925,-420.41158899,0.00018356,2]
[315133789,1708867841934,-556.60637479,0.00018357,2]
[315133790,1708867841944,-395.30885318,0.00018899,2]
[315133791,1708867841953,-508.17051406,0.000189,2]
[315133792,1708867841963,-388.60266898,0.0001899,2]
[315133801,1708867843616,-809.8028167,0.0001899,2]
[315133850,1708868309421,267.416678,0.00018062,2]
[315133851,1708868376028,24900.0,0.00018084,2]
[315133853,1708868381351,-1360.30770303,0.00027372,120]
[315133854,1708868381376,-999.18845688,0.00027372,120]
[315133855,1708868381398,-554.02045908,0.00027372,120]
[315133856,1708868381422,-16714.51976814,0.00027372,120]
[315133857,1708868390094,-162.0,0.0002791,35]
[315133858,1708868390118,-155.28,0.0002792,35]
[315133859,1708868390141,-150.5,0.0002793,35]
[315133860,1708868390164,-1554.0,0.0002793,35]
[315133861,1708868390188,-1554.0,0.0002793,35]
[315133862,1708868390210,-150.5,0.0002794,35]
[315133863,1708868390234,-245.3,0.0002794,35]
[315133864,1708868390258,-1554.0,0.0002794,35]
[315133865,1708868390282,-1554.0,0.0002794,35]
[315133866,1708868390306,-1554.0,0.0002794,35]
[315133867,1708868390329,-1562.08,0.0002794,35]
[315133868,1708868390353,-150.5,0.0002795,35]
[315133869,1708868390378,-1554.0,0.0002795,35]
[315133870,1708868390401,-150.5,0.0002795,35]
[315133871,1708868390424,-1554.0,0.0002795,35]
[315133872,1708868390448,-1554.0,0.0002795,35]
[315133873,1708868390470,-1554.0,0.0002795,35]
[315133874,1708868390493,-150.5,0.0002796,35]
[315133875,1708868390516,-155.36,0.0002796,35]
[315133876,1708868390540,-150.5,0.0002797,35]
[315133877,1708868390563,-150.5,0.0002797,35]
[315133878,1708868390586,-150.5,0.0002798,35]
[315133879,1708868390608,-150.5,0.0002798,35]
[315133880,1708868390634,-686168.96154522,0.0003,120]
[315133881,1708868390662,-164.385927,0.00030959,33]
[315133882,1708868390685,-164.385927,0.00030959,41]
[315133883,1708868390709,-164.385927,0.00030959,49]
[315133884,1708868390733,-164.385927,0.00030959,57]
[315133885,1708868390755,-164.385927,0.00030959,64]
[315133886,1708868390778,-164.385927,0.00030959,72]
[315133887,1708868390801,-164.385927,0.00030959,80]
[315133888,1708868390825,-164.385927,0.00030959,88]
[315133889,1708868390847,-164.385927,0.00030959,96]
[315133890,1708868390871,-164.385927,0.00030959,104]
[315133891,1708868390894,-164.385927,0.00030959,112]
[315133892,1708868390916,-164.385927,0.00030959,120]
[315133893,1708868390939,-10000.0,0.00031,120]
[315133894,1708868390978,-1000.0,0.00033,33]
[315133895,1708868391003,-1000.0,0.00035,35]
[315133896,1708868391027,-850.0,0.00036,120]
[315133897,1708868391170,-2415.03398641,0.00036163,120]
[315133898,1708868391195,-1000.0,0.00037,37]
[315133899,1708868391218,-277972.85334437,0.000375,35]
[315133900,1708868395484,-792169.46606065,0.000375,35]
[315133901,1708868395507,-207830.53393935,0.00038806,33]
[315133902,1708868399271,-292169.46606065,0.00038806,33]
[315133903,1708868399296,-1487.97395017,0.00039768,120]
[315133904,1708868399321,-500000.0,0.000398,45]
[315133905,1708868399346,-2000.0,0.0004,41]
[315133906,1708868399370,-2000.0,0.0004001,41]
[315133907,1708868399394,-2000.0,0.0004002,41]
[315133908,1708868399418,-3602.432698,0.0004003,41]
[315133918,1708868700217,376.0573731,0.00018042,2]
[315133965,1708868844199,24900.0,0.00017819,2]
[315134005,1708869031885,-166.72933605,0.00018159,2]
[315134006,1708869031895,-155.0,0.0001816,2]
[315134007,1708869031904,-248.20199955,0.0001816,2]
[315134008,1708869031916,-1342.94940417,0.0001816,2]
[315134009,1708869031925,-704.14144082,0.00018161,2]
[315134010,1708869031934,-1878.64735971,0.00018162,2]
[315134011,1708869031943,-640.11979573,0.00018163,2]
[315134012,1708869031953,-300.0,0.00018177,2]
[315134013,1708869031962,-7500.5763838,0.00018178,2]
[315134014,1708869031971,-249.5002275,0.00018791,2]
[315134015,1708869031980,-250.40826329,0.000189,2]
[315134016,1708869031989,-7030.76500545,0.0001899,2]
[315134017,1708869031998,-155.0,0.00019,2]
[315134018,1708869032007,-245.59344234,0.00019078,2]
[315134019,1708869032017,-11366.57043836,0.00019174,2]
[315134020,1708869032026,-500.0,0.00019177,2]
[315134021,1708869032035,-500.0,0.00019178,2]
[315134022,1708869032044,-500.0,0.00019178,2]
[315134023,1708869032054,-712.52,0.00019178,2]
[315134024,1708869032063,-241.11026349,0.00019178,2]
[315134025,1708869032073,-500.0,0.00019178,2]
[315134026,1708869032082,-500.0,0.00019178,2]
[315134027,1708869032090,-500.87125203,0.00019178,2]
[315134028,1708869032100,-500.82063476,0.00019178,2]
[315134029,1708869032111,-500.0,0.00019178,2]
[315134030,1708869032120,-502.34843304,0.00019178,2]
[315134031,1708869032129,-543.68572627,0.00019178,2]
[315134032,1708869032138,-500.0,0.00019178,2]
[315134033,1708869032147,-500.0,0.00019178,2]
[315134034,1708869032156,-501.38870417,0.00019178,2]
[315134035,1708869032165,-237.30620827,0.00019178,2]
[315134036,1708869032175,-500.35101391,0.00019178,2]
[315134037,1708869032185,-501.65770956,0.00019178,2]
[315134038,1708869032195,-500.94926945,0.00019178,2]
[315134039,1708869032204,-563.21410186,0.00019178,2]
[315134040,1708869032213,-500.0,0.00019178,2]
[315134041,1708869032222,-500.0,0.00019178,2]
[315134042,1708869032233,-500.0,0.00019178,2]
[315134043,1708869032242,-155.31350748,0.00019178,2]
[315134044,1708869032251,-171.73712487,0.00019178,2]
[315134045,1708869032261,-501.12706915,0.00019178,2]
[315134046,1708869032271,-500.0,0.00019178,2]
[315134047,1708869032280,-500.0,0.00019178,2]
[315134048,1708869032290,-500.0,0.00019178,2]
[315134049,1708869032299,-500.0,0.00019178,2]
[315134050,1708869032308,-150.03458746,0.00019178,2]
[315134051,1708869032318,-500.0,0.00019178,2]
[315134052,1708869032327,-500.0,0.00019178,2]
[315134053,1708869032336,-500.0,0.00019178,2]
[315134054,1708869032345,-500.0,0.00019178,2]
[315134055,1708869032355,-500.0,0.00019178,2]
[315134056,1708869032365,-500.0,0.00019178,2]
[315134057,1708869032374,-500.0,0.00019178,2]
[315134058,1708869032384,-501.75068426,0.00019178,2]
[315134059,1708869032394,-500.0,0.00019178,2]
[315134060,1708869032403,-1874.65,0.00019178,2]
[315134061,1708869032413,-826.86,0.00019178,2]
[315134062,1708869032422,-502.36041731,0.00019178,2]
[315134063,1708869032432,-500.0,0.00019178,2]
[315134064,1708869032442,-175.0,0.00019178,2]
[315134065,1708869032452,-500.0,0.00019178,2]
[315134066,1708869032461,-500.0,0.00019178,2]
[315134067,1708869032471,-500.0,0.00019178,2]
[315134068,1708869032480,-500.0,0.00019178,2]
[315134069,1708869032490,-500.0,0.00019178,2]
[315134070,1708869032499,-500.0,0.00019178,2]
[315134071,1708869032508,-500.0,0.00019178,2]
[315134072,1708869032518,-500.0,0.00019178,2]
[315134073,1708869032527,-500.0,0.00019178,2]
[315134074,1708869032537,-500.0,0.00019178,2]
[315134075,1708869032547,-500.0,0.00019178,2]
[315134076,1708869032556,-500.0,0.00019178,2]
[315134077,1708869032566,-500.0,0.00019178,2]
[315134078,1708869032575,-500.0,0.00019178,2]
[315134079,1708869032585,-335.89139534,0.00019178,2]
[315134080,1708869032599,-164.10860466,0.00019178,2]
[315134081,1708869032610,-500.0,0.00019178,2]
[315134082,1708869032620,-500.0,0.00019178,2]
[315134083,1708869032630,-55.8397045,0.00019178,2]
[315134088,1708869037835,-444.1602955,0.00019178,2]
[315134089,1708869037844,-439.33053708,0.00019178,2]
[315134090,1708869037854,-500.0,0.00019178,2]
[315134091,1708869037863,-436.48499995,0.00019178,2]
[315134174,1708869045889,-63.51500005,0.00019178,2]
[315134175,1708869045899,-500.0,0.00019178,2]
[315134176,1708869045909,-156.27499995,0.00019178,2]
[315134177,1708869045920,-343.72500005,0.00019178,2]
[315134178,1708869045929,-468.31625891,0.00019178,2]
[315134204,1708869794524,158.974517,0.00017897,2]
[315134247,1708870232046,-307.20936597,0.00018324,2]
[315134249,1708870232055,-154.98450155,0.00018324,2]
[315134250,1708870232064,-603.46958157,0.00018324,2]
[315134251,1708870232076,-467.09929999,0.00018324,2]
[315134277,1708870239520,19777.72971415,0.00017897,2]
[315134314,1708870311581,204.80624398,0.000181,2]
[315134315,1708870315132,329.42404432,0.000181,2]
[315134316,1708870316023,19777.72971415,0.00017897,2]
[315134318,1708870330204,286.49940301,0.00017897,2]
[315134320,1708870372527,154.98450155,0.000181,2]
[315134321,1708870386917,171.62992709,0.000181,2]
[315134322,1708870392187,170.67186999,0.000181,2]
[315134323,1708870399417,358.54243834,0.000181,2]
[315134324,1708870431042,690.85829619,0.000181,2]
[315134325,1708870448993,154.98450155,0.000181,2]
[315134327,1708870464168,171.62992709,0.000181,2]
[315134328,1708870467921,298.78536529,0.000181,2]
[315134329,1708870470609,170.67186999,0.000181,2]
[315134331,1708870509544,575.71524683,0.000181,2]
[315134332,1708870527489,154.98450155,0.000181,2]
[315134334,1708870532451,298.78536529,0.000181,2]
[315134335,1708870537221,154.98450155,0.000181,2]
[315134336,1708870548652,171.62992709,0.000181,2]
[315134339,1708870576050,299.9476436,0.000181,2]
[315134342,1708870625165,171.62992709,0.000181,2]
[315134344,1708870660172,154.98450155,0.000181,2]
[315134349,1708870695811,171.62992709,0.000181,2]